bitfinex-derivatives/quotes_BNBF0:USTF0_20251225
["timestamp","ask_amount","ask_price","bid_price","bid_amount"]
[1766671629633,1.19568608,837.06,836.23,1.19086231]
[1766671629830,1.19568608,837.05,836.23,1.19086231]
[1766671630134,1.19568608,837.04,836.23,1.19086231]
[1766671630330,1.19568608,837.03,836.23,1.19086231]
[1766671630529,1.19568608,837.02,836.23,1.19086231]
[1766671630735,1.19568608,837.01,836.23,1.19086231]
[1766671630938,1.19568608,837.0,836.23,1.19086231]
[1766671631138,1.19568608,836.99,836.23,1.19086231]
[1766671631338,1.19568608,836.98,836.23,1.19086231]
[1766671631538,1.19568608,836.97,836.23,1.19086231]
[1766671631735,1.19568608,836.96,836.23,1.19086231]
[1766671631938,1.19568608,836.95,836.23,1.19086231]
[1766671632234,12.87494259,836.99,836.23,1.19086231]
[1766671632438,1.19568597,836.98,836.23,1.19086231]
[1766671632636,1.19568597,836.97,836.23,1.19086231]
[1766671632835,1.19568597,836.96,836.23,1.19086231]
[1766671633138,1.19568597,836.95,836.23,1.19086231]
[1766671633337,12.87494259,836.99,836.23,1.19086231]
[1766671633538,1.19568597,836.98,836.23,1.19086231]
[1766671633738,1.19568597,836.97,836.23,1.19086231]
[1766671633938,1.19568597,836.96,836.23,1.19086231]
[1766671634141,1.19568597,836.95,836.23,1.19086231]
[1766671634341,12.87494259,836.99,836.23,1.19086231]
[1766671634542,1.19568586,836.98,836.23,1.19086231]
[1766671634743,1.19568586,836.97,836.23,1.19086231]
[1766671635038,1.19568586,836.96,836.23,1.19086231]
[1766671635242,1.19568586,836.95,836.23,1.19086231]
[1766671635542,0.89666867,837.08,836.23,1.19086231]
[1766671635742,1.19568575,837.07,836.23,1.19086231]
[1766671635941,1.19568575,837.06,836.23,1.19086231]
[1766671636140,1.19568575,837.05,836.23,1.19086231]
[1766671636338,1.19568575,837.04,836.23,1.19086231]
[1766671636643,1.19568575,837.03,836.23,1.19086231]
[1766671636943,1.19568575,837.02,836.23,1.19086231]
[1766671637243,1.19568575,837.01,836.23,1.19086231]
[1766671637443,1.19568575,837.0,836.23,1.19086231]
[1766671637738,1.19568575,836.99,836.23,1.19086231]
[1766671637942,1.19568575,836.98,836.23,1.19086231]
[1766671638137,1.19568575,836.97,836.23,1.19086231]
[1766671638342,1.19568575,836.96,836.23,1.19086231]
[1766671638540,1.19568575,836.95,836.23,1.19086231]
[1766671638740,0.89666867,837.08,836.23,1.19086231]
[1766671639042,1.19568575,837.07,836.23,1.19086231]
[1766671639239,1.19568575,837.06,836.23,1.19086231]
[1766671639441,1.19568575,837.05,836.23,1.19086231]
[1766671639742,1.19568575,837.04,836.23,1.19086231]
[1766671639941,1.19568575,837.03,836.23,1.19086231]
[1766671640143,1.19568575,837.02,836.23,1.19086231]
[1766671640344,1.19568575,837.01,836.23,1.19086231]
[1766671640641,1.19568575,837.0,836.23,1.19086231]
[1766671640942,1.19568575,836.99,836.23,1.19086231]
[1766671641145,13.9882001,836.98,836.23,1.19086231]
[1766671641341,1.19568575,836.97,836.23,1.19086231]
[1766671641642,1.19568575,836.96,836.23,1.19086231]
[1766671641942,1.19568575,836.95,836.23,1.19086231]
[1766671642145,12.79251435,836.98,836.23,1.19086231]
[1766671642342,1.19568575,836.97,836.23,1.19086231]
[1766671642645,1.19568575,836.96,836.23,1.19086231]
[1766671642847,1.19568575,836.95,836.23,1.19086231]
[1766671643045,12.79251435,836.98,836.23,1.19086231]
[1766671643340,1.19568575,836.97,836.23,1.19086231]
[1766671643544,12.79251435,836.98,836.23,1.19086231]
[1766671643545,1.19568575,836.96,836.23,1.19086231]
[1766671643743,1.19568575,836.95,836.23,1.19086231]
[1766671643942,12.79251435,836.98,836.23,1.19086231]
[1766671644146,1.19568619,836.97,836.23,1.19086231]
[1766671644446,1.19568619,836.96,836.23,1.19086231]
[1766671644643,1.19568619,836.95,836.23,1.19086231]
[1766671644946,0.89666867,837.08,836.23,1.19086231]
[1766671645146,1.19568608,837.07,836.23,1.19086231]
[1766671645346,1.19568608,837.06,836.23,1.19086231]
[1766671645643,1.19568608,837.05,836.23,1.19086231]
[1766671645842,1.19568608,837.04,836.23,1.19086231]
[1766671646046,1.19568608,837.03,836.23,1.19086231]
[1766671646244,1.19568608,837.02,836.23,1.19086231]
[1766671646448,1.19568608,837.01,836.23,1.19086231]
[1766671646649,1.19568608,837.0,836.23,1.19086231]
[1766671646848,1.19568608,836.99,836.23,1.19086231]
[1766671647045,1.19568608,836.98,836.23,1.19086231]
[1766671647347,1.19568608,836.97,836.23,1.19086231]
[1766671647545,1.19568608,836.96,836.23,1.19086231]
[1766671647747,1.19568608,836.95,836.23,1.19086231]
[1766671647949,0.89666867,837.08,836.23,1.19086231]
[1766671648151,1.19568597,837.07,836.23,1.19086231]
[1766671648447,1.19568597,837.06,836.23,1.19086231]
[1766671648648,1.19568597,837.05,836.23,1.19086231]
[1766671648851,1.19568597,837.04,836.23,1.19086231]
[1766671649051,1.19568597,837.03,836.23,1.19086231]
[1766671649248,1.19568597,837.02,836.23,1.19086231]
[1766671649547,1.19568597,837.01,836.23,1.19086231]
[1766671649747,0.89666867,837.08,836.23,1.19086231]
[1766671649748,1.19568597,837.0,836.23,1.19086231]
[1766671649950,1.19568597,836.99,836.23,1.19086231]
[1766671650151,1.19568597,836.98,836.23,1.19086231]
[1766671650352,1.19568597,836.97,836.23,1.19086231]
[1766671650652,1.19568597,836.96,836.23,1.19086231]
[1766671650852,1.19568597,836.95,836.23,1.19086231]
[1766671651051,13.2243694,836.98,836.23,1.19086231]
[1766671651249,1.19568597,836.97,836.23,1.19086231]
[1766671651547,1.19568597,836.96,836.23,1.19086231]
[1766671651748,1.19568597,836.95,836.23,1.19086231]
[1766671651950,13.2243694,836.98,836.23,1.19086231]
[1766671652148,1.19568597,836.97,836.23,1.19086231]
[1766671652347,1.19568597,836.96,836.23,1.19086231]
[1766671652550,1.19568597,836.95,836.23,1.19086231]
[1766671652750,13.2243694,836.98,836.23,1.19086231]
[1766671652951,1.19568597,836.97,836.23,1.19086231]
[1766671653249,1.19568597,836.96,836.23,1.19086231]
[1766671653450,1.19568597,836.95,836.23,1.19086231]
[1766671653652,0.89666867,837.08,836.23,1.19086231]
[1766671653851,1.19568597,837.07,836.23,1.19086231]
[1766671654054,1.19568597,837.06,836.23,1.19086231]
[1766671654253,1.19568597,837.05,836.23,1.19086231]
[1766671654452,1.19568597,837.04,836.23,1.19086231]
[1766671654751,0.89666867,837.08,836.23,1.19086231]
[1766671654752,1.19568597,837.03,836.23,1.19086231]
[1766671654950,1.19568597,837.02,836.23,1.19086231]
[1766671655149,1.19568597,837.01,836.23,1.19086231]
[1766671655452,1.19568597,837.0,836.23,1.19086231]
[1766671655650,0.89666867,837.08,836.23,1.19086231]
[1766671655651,1.19568597,836.99,836.23,1.19086231]
[1766671655849,1.19568597,836.98,836.23,1.19086231]
[1766671656054,1.19568597,836.97,836.23,1.19086231]
[1766671656350,1.19568597,836.96,836.23,1.19086231]
[1766671656553,1.19568597,836.95,836.23,1.19086231]
[1766671656754,0.89666867,837.08,836.23,1.19086231]
[1766671657054,1.19568597,837.07,836.23,1.19086231]
[1766671657254,1.19568597,837.06,836.23,1.19086231]
[1766671657454,1.19568597,837.05,836.23,1.19086231]
[1766671657653,1.19568597,837.04,836.23,1.19086231]
[1766671657850,1.19568597,837.03,836.23,1.19086231]
[1766671658154,1.19568597,837.02,836.23,1.19086231]
[1766671658353,1.19568597,837.01,836.23,1.19086231]
[1766671658654,1.19568597,837.0,836.23,1.19086231]
[1766671658855,1.19568597,836.99,836.23,1.19086231]
[1766671659052,1.19568597,836.98,836.23,1.19086231]
[1766671659255,1.19568597,836.97,836.23,1.19086231]
[1766671659555,1.19568597,836.96,836.23,1.19086231]
[1766671659850,1.19568597,836.95,836.23,1.19086231]
[1766671660055,0.89666867,837.08,836.23,1.19086231]
[1766671660360,1.19568635,837.07,836.23,1.19086231]
[1766671660557,1.19568635,837.06,836.23,1.19086231]
[1766671660857,1.19568635,837.05,836.23,1.19086231]
[1766671661061,1.19568635,837.04,836.23,1.19086231]
[1766671661260,1.19568635,837.03,836.23,1.19086231]
[1766671661461,1.19568635,837.02,836.23,1.19086231]
[1766671661658,1.19568635,837.01,836.23,1.19086231]
[1766671661858,1.19568635,837.0,836.23,1.19086231]
[1766671662161,1.19568635,836.99,836.23,1.19086231]
[1766671662458,1.19568635,836.98,836.23,1.19086231]
[1766671662658,1.19568635,836.97,836.23,1.19086231]
[1766671662864,1.19568635,836.96,836.23,1.19086231]
[1766671663064,1.19568635,836.95,836.23,1.19086231]
[1766671663264,0.89666867,837.08,836.23,1.19086231]
[1766671663465,1.19568635,837.07,836.23,1.19086231]
[1766671663661,1.19568635,837.06,836.23,1.19086231]
[1766671663865,1.19568635,837.05,836.23,1.19086231]
[1766671664062,1.19568635,837.04,836.23,1.19086231]
[1766671664365,1.19568635,837.03,836.23,1.19086231]
[1766671664566,14.04279436,837.02,836.23,1.19086231]
[1766671664765,1.19568635,837.01,836.23,1.19086231]
[1766671666063,1.19568635,837.01,836.24,1.19086231]
[1766671668366,1.19568635,837.0,836.24,1.19086231]
[1766671668562,1.19568635,836.99,836.24,1.19086231]
[1766671668765,1.19568635,836.98,836.24,1.19086231]
[1766671668966,1.19568635,836.97,836.24,1.19086231]
[1766671669167,0.89666867,837.08,836.24,1.19086231]
[1766671669168,1.19568635,836.96,836.24,1.19086231]
[1766671669463,1.19568635,836.95,836.24,1.19086231]
[1766671669664,0.89666867,837.08,836.24,1.19086231]
[1766671669863,1.19568668,837.07,836.24,1.19086231]
[1766671670063,1.19568668,837.06,836.24,1.19086231]
[1766671670261,1.19568668,837.05,836.24,1.19086231]
[1766671670563,1.19568668,837.04,836.24,1.19086231]
[1766671670763,1.19568668,837.03,836.24,1.19086231]
[1766671670967,1.19568668,837.02,836.24,1.19086231]
[1766671671164,1.19568668,837.01,836.24,1.19086231]
[1766671671369,1.19568668,837.0,836.24,1.19086231]
[1766671671568,1.19568668,836.99,836.24,1.19086231]
[1766671671868,14.26858075,836.98,836.24,1.19086231]
[1766671672068,1.19568668,836.97,836.24,1.19086231]
[1766671672268,1.19568668,836.96,836.24,1.19086231]
[1766671672468,1.19568668,836.95,836.24,1.19086231]
[1766671672664,13.07289407,836.98,836.24,1.19086231]
[1766671672868,1.19568635,836.97,836.24,1.19086231]
[1766671673068,1.19568635,836.96,836.24,1.19086231]
[1766671673270,1.19568635,836.95,836.24,1.19086231]
[1766671673469,13.07289407,836.98,836.24,1.19086231]
[1766671673665,1.19568635,836.97,836.24,1.19086231]
[1766671673869,1.19568635,836.96,836.24,1.19086231]
[1766671674066,1.19568635,836.95,836.24,1.19086231]
[1766671674366,13.07289407,836.98,836.24,1.19086231]
[1766671674570,1.19568635,836.97,836.24,1.19086231]
[1766671674867,1.19568635,836.96,836.24,1.19086231]
[1766671675069,1.19568635,836.95,836.24,1.19086231]
[1766671675269,0.89666867,837.08,836.24,1.19086231]
[1766671675568,1.19568635,837.07,836.24,1.19086231]
[1766671675766,1.19568635,837.06,836.24,1.19086231]
[1766671675966,1.19568635,837.05,836.24,1.19086231]
[1766671676169,1.19568635,837.04,836.24,1.19086231]
[1766671676371,1.19568635,837.03,836.24,1.19086231]
[1766671676566,1.19568635,837.02,836.24,1.19086231]
[1766671676864,1.19568635,837.01,836.24,1.19086231]
[1766671677067,1.19568635,837.0,836.24,1.19086231]
[1766671677370,1.19568635,836.99,836.24,1.19086231]
[1766671677671,1.19568635,836.98,836.24,1.19086231]
[1766671677966,1.19568635,836.97,836.24,1.19086231]
[1766671678167,1.19568635,836.96,836.24,1.19086231]
[1766671678371,1.19568635,836.95,836.24,1.19086231]
[1766671678568,0.89666867,837.08,836.24,1.19086231]
[1766671678772,1.19568635,837.07,836.24,1.19086231]
[1766671678972,1.19568635,837.06,836.24,1.19086231]
[1766671679169,1.19568635,837.05,836.24,1.19086231]
[1766671679373,1.19568635,837.04,836.24,1.19086231]
[1766671679668,1.19568635,837.03,836.24,1.19086231]
[1766671679972,1.19568635,837.02,836.24,1.19086231]
[1766671680272,1.19568635,837.01,836.24,1.19086231]
[1766671680468,1.19568635,837.0,836.24,1.19086231]
[1766671680768,1.19568635,836.99,836.24,1.19086231]
[1766671681073,14.25515438,836.98,836.24,1.19086231]
[1766671681268,1.19568635,836.97,836.24,1.19086231]
[1766671681471,1.19568635,836.96,836.24,1.19086231]
[1766671681771,1.19568635,836.95,836.24,1.19086231]
[1766671682067,13.05946803,836.98,836.24,1.19086231]
[1766671682270,1.19568635,836.97,836.24,1.19086231]
[1766671682569,1.19568635,836.96,836.24,1.19086231]
[1766671682768,1.19568635,836.95,836.24,1.19086231]
[1766671682973,13.05946803,836.98,836.24,1.19086231]
[1766671683174,1.19568646,836.97,836.24,1.19086231]
[1766671683469,1.19568646,836.96,836.24,1.19086231]
[1766671683673,1.19568646,836.95,836.24,1.19086231]
[1766671683972,13.05946803,836.98,836.24,1.19086231]
[1766671684173,1.19568646,836.97,836.24,1.19086231]
[1766671684370,1.19568646,836.96,836.24,1.19086231]
[1766671684572,1.19568646,836.95,836.24,1.19086231]
[1766671684769,0.89666867,837.08,836.24,1.19086231]
[1766671684969,1.19568646,837.07,836.24,1.19086231]
[1766671685270,1.19568646,837.06,836.24,1.19086231]
[1766671685571,1.19568646,837.06,836.08,1.79182466]
[1766671685572,1.19568646,837.05,836.23,1.19086231]
[1766671685768,1.19568646,837.04,836.23,1.19086231]
[1766671685969,1.19568646,837.03,836.23,1.19086231]
[1766671686167,1.19568646,837.02,836.22,1.19086231]
[1766671686372,1.19568646,837.01,836.22,1.19086231]
[1766671686668,1.19568646,837.0,836.22,1.19086231]
[1766671686868,1.19568646,836.99,836.22,1.19086231]
[1766671687069,0.89666867,837.06,836.21,1.19086231]
[1766671687269,1.19570685,837.05,836.21,1.19086231]
[1766671687572,1.19570685,837.04,836.21,1.19086231]
[1766671687771,1.19570685,837.03,836.21,1.19086231]
[1766671687973,1.19570685,837.02,836.21,1.19086231]
[1766671688174,1.19570685,837.01,836.21,1.19086231]
[1766671688373,1.19570685,837.0,836.21,1.19086231]
[1766671688673,1.19570685,836.99,836.17,1.19086231]
[1766671688873,1.19570685,836.98,836.17,1.19086231]
[1766671689172,1.19570685,836.97,836.16,1.19086231]
[1766671689369,1.19570685,836.96,836.16,1.19086231]
[1766671689568,1.19570685,836.95,836.16,1.19086231]
[1766671689773,1.19570685,836.94,836.16,1.19086231]
[1766671690070,1.19570685,836.93,836.16,1.19086231]
[1766671690269,1.19570685,836.92,836.16,1.19086231]
[1766671690470,1.19570685,836.91,836.16,1.19086231]
[1766671690670,0.89666867,837.03,836.16,1.19086231]
[1766671690869,1.19576823,837.02,836.16,1.19086231]
[1766671691168,1.19576823,837.01,836.16,1.19086231]
[1766671691372,1.19576823,837.0,836.16,1.19086231]
[1766671691570,1.19576823,836.99,836.16,1.19086231]
[1766671691770,1.19576823,836.98,836.16,1.19086231]
[1766671692073,1.19576823,836.97,836.16,1.19086231]
[1766671692274,1.19576823,836.96,836.16,1.19086231]
[1766671692574,1.19576823,836.95,836.16,1.19086231]
[1766671692770,1.19576823,836.94,836.16,1.19086231]
[1766671692970,1.19576823,836.93,836.16,1.19086231]
[1766671693176,1.19576823,836.92,836.15,1.19086231]
[1766671693370,13.24940544,836.93,836.16,1.19086231]
[1766671693575,1.19575727,836.92,836.16,1.19086231]
[1766671693875,13.24940544,836.93,836.16,1.19086231]
[1766671694175,1.19575727,836.92,836.16,1.19086231]
[1766671694376,13.24940544,836.93,836.16,1.19086231]
[1766671694574,1.19575728,836.92,836.16,1.19086231]
[1766671694772,13.24940544,836.93,836.16,1.19086231]
[1766671694978,1.19575728,836.92,836.16,1.19086231]
[1766671695277,13.24940544,836.93,836.16,1.19086231]
[1766671695477,1.19575728,836.92,836.16,1.19086231]
[1766671695678,13.24940544,836.93,836.16,1.19086231]
[1766671695878,1.19575728,836.92,836.16,1.19086231]
[1766671696073,13.24940544,836.93,836.16,1.19086231]
[1766671697580,0.89666867,837.05,836.16,1.19086231]
[1766671697778,1.19575706,837.04,836.16,1.19086231]
[1766671698078,1.19575706,837.03,836.16,1.19086231]
[1766671698280,1.19575706,837.02,836.16,1.19086231]
[1766671698480,1.19575706,837.01,836.16,1.19086231]
[1766671698676,1.19575706,837.0,836.16,1.19086231]
[1766671698976,1.19575706,836.99,836.16,1.19086231]
[1766671699280,1.19575706,836.98,836.16,1.19086231]
[1766671699576,0.89666867,837.05,836.16,1.19086231]
[1766671699577,1.19575706,836.97,836.16,1.19086231]
[1766671699776,1.19575706,836.96,836.16,1.19086231]
[1766671699977,1.19575706,836.95,836.16,1.19086231]
[1766671700177,1.19575706,836.94,836.15,1.19086231]
[1766671700377,1.19575706,836.93,836.15,1.19086231]
[1766671700581,0.89666867,837.05,836.15,1.19086231]
[1766671700777,1.19575706,837.04,836.15,1.19086231]
[1766671701078,1.19575706,837.03,836.15,1.19086231]
[1766671701278,1.19575706,837.02,836.15,1.19086231]
[1766671701482,1.19575706,837.01,836.15,1.19086231]
[1766671701676,0.89666867,837.05,836.15,1.19086231]
[1766671701677,1.19575706,837.0,836.15,1.19086231]
[1766671701882,1.19575706,836.99,836.15,1.19086231]
[1766671702182,1.19575706,836.98,836.15,1.19086231]
[1766671702379,1.19575706,836.97,836.15,1.19086231]
[1766671702579,1.19575706,836.96,836.15,1.19086231]
[1766671702882,1.19575706,836.95,836.15,1.19086231]
[1766671703081,1.19575706,836.94,836.15,1.19086231]
[1766671703279,1.19575706,836.93,836.15,1.19086231]
[1766671703484,0.20794804,837.03,836.15,1.19086231]
[1766671703682,1.19575761,837.02,836.15,1.19086231]
[1766671703879,1.19575761,837.01,836.15,1.19086231]
[1766671704085,1.19575761,837.0,836.15,1.19086231]
[1766671704285,1.19575761,836.99,836.15,1.19086231]
[1766671704484,1.19575761,836.98,836.15,1.19086231]
[1766671704683,1.19575761,836.97,836.15,1.19086231]
[1766671704887,1.19575761,836.96,836.15,1.19086231]
[1766671705183,1.19575761,836.95,836.15,1.19086231]
[1766671705385,1.19575761,836.94,836.15,1.19086231]
[1766671705579,14.45931455,836.93,836.15,1.19086231]
[1766671705781,13.26355694,836.93,836.15,1.19086231]
[1766671708791,0.20794804,837.03,836.15,1.19086231]
[1766671708985,1.19575782,837.02,836.15,1.19086231]
[1766671709285,1.19575782,837.01,836.15,1.19086231]
[1766671709586,1.19575782,837.0,836.15,1.19086231]
[1766671709888,1.19575782,836.99,836.15,1.19086231]
[1766671710087,1.19575782,836.98,836.15,1.19086231]
[1766671710390,1.19575782,836.97,836.15,1.19086231]
[1766671710589,1.19575782,836.96,836.15,1.19086231]
[1766671710888,1.19575782,836.95,836.15,1.19086231]
[1766671711088,1.19575782,836.94,836.15,1.19086231]
[1766671711292,1.19575782,836.93,836.15,1.19086231]
[1766671711490,0.20794804,837.03,836.15,1.19086231]
[1766671711792,1.1957575,837.02,836.15,1.19086231]
[1766671711993,1.1957575,837.01,836.15,1.19086231]
[1766671712191,1.1957575,837.0,836.15,1.19086231]
[1766671712392,1.1957575,836.99,836.15,1.19086231]
[1766671712691,1.1957575,836.98,836.15,1.19086231]
[1766671712890,1.1957575,836.97,836.15,1.19086231]
[1766671713089,1.1957575,836.96,836.15,1.19086231]
[1766671713294,1.1957575,836.95,836.15,1.19086231]
[1766671713491,1.1957575,836.94,836.15,1.19086231]
[1766671713692,1.1957575,836.93,836.15,1.19086231]
[1766671713892,0.20794804,837.03,836.15,1.19086231]
[1766671714090,1.1957575,837.02,836.15,1.19086231]
[1766671714393,1.1957575,837.01,836.15,1.19086231]
[1766671714591,1.1957575,837.0,836.15,1.19086231]
[1766671714791,1.1957575,836.99,836.15,1.19086231]
[1766671714991,1.1957575,836.98,836.15,1.19086231]
[1766671715190,1.1957575,836.97,836.15,1.19086231]
[1766671716292,1.1957575,836.97,836.16,1.19086231]
[1766671716494,13.08012157,836.98,836.21,1.19086231]
[1766671718895,13.08012157,836.98,836.24,1.19086231]
[1766671719199,0.20794804,837.03,836.24,1.19086231]
[1766671719400,1.19562929,837.02,836.24,1.19086231]
[1766671719695,0.20794804,837.03,836.24,1.19086231]
[1766671719899,1.19562918,837.02,836.24,1.19086231]
[1766671720096,0.20794804,837.03,836.24,10.24809561]
[1766671720395,1.19562918,837.02,836.24,10.24809561]
[1766671720600,0.20794804,837.03,836.24,10.24809561]
[1766671720798,1.19562918,837.02,836.24,10.24809561]
[1766671721101,0.89666867,837.26,836.35,1.19086231]
[1766671721400,0.20791822,837.22,836.33,1.19086231]
[1766671721697,1.19547277,837.21,836.33,1.19086231]
[1766671721896,1.19547277,837.2,836.33,1.19086231]
[1766671722098,1.19547277,837.19,836.32,1.19086231]
[1766671722300,1.19547277,837.18,836.32,1.19086231]
[1766671722501,1.19547277,837.17,836.32,1.19086231]
[1766671722801,1.19547277,837.16,836.32,1.19086231]
[1766671723003,0.20791822,837.22,836.32,1.19086231]
[1766671723299,1.19547256,837.21,836.31,1.19086231]
[1766671723598,1.19547256,837.2,836.31,1.19086231]
[1766671723798,1.19547256,837.19,836.31,1.19086231]
[1766671723997,1.19547256,837.18,836.31,1.19086231]
[1766671724198,1.19547256,837.17,836.31,1.19086231]
[1766671724396,0.20791822,837.22,836.31,1.19086231]
[1766671724600,1.19547256,837.21,836.31,1.19086231]
[1766671724806,1.19547256,837.2,836.31,1.19086231]
[1766671724998,1.19547256,837.19,836.31,1.19086231]
[1766671725196,1.19547256,837.18,836.3,1.19086231]
[1766671725397,0.20791822,837.22,836.3,1.19086231]
[1766671725703,1.19547267,837.21,836.3,1.19086231]
[1766671725900,1.19547267,837.2,836.3,1.19086231]
[1766671726100,1.19547267,837.19,836.3,1.19086231]
[1766671726401,0.20791822,837.22,836.3,1.19086231]
[1766671726697,1.19547267,837.21,836.3,1.19086231]
[1766671726901,1.19547267,837.2,836.3,1.19086231]
[1766671727098,1.19547267,837.19,836.29,1.19086231]
[1766671727298,0.20791822,837.22,836.29,1.19086231]
[1766671727501,1.19547267,837.21,836.29,1.19086231]
[1766671727797,1.19547267,837.2,836.29,1.19086231]
[1766671727997,1.19547267,837.19,836.29,1.19086231]
[1766671728301,0.20791822,837.22,836.29,1.19086231]
[1766671728501,1.19547267,837.21,836.29,1.19086231]
[1766671728801,1.19547267,837.2,836.29,1.19086231]
[1766671729002,0.20791822,837.22,836.29,1.19086231]
[1766671729198,1.19547267,837.21,836.28,1.19086231]
[1766671729402,1.19547267,837.2,836.28,1.19086231]
[1766671729699,0.20791822,837.22,836.28,1.19086231]
[1766671729903,1.19547256,837.21,836.28,1.19086231]
[1766671730202,1.19547256,837.2,836.28,1.19086231]
[1766671730403,0.20791822,837.22,836.28,1.19086231]
[1766671730603,1.19547256,837.21,836.28,1.19086231]
[1766671730803,1.19547256,837.2,836.28,1.19086231]
[1766671731104,12.81190157,837.21,836.27,1.19086231]
[1766671731704,12.81190157,837.21,836.28,1.19086231]
[1766671732206,12.81190157,837.21,836.27,1.19086231]
[1766671734403,0.20791822,837.22,836.27,1.19086231]
[1766671734908,0.20791822,837.22,836.28,1.19086231]
[1766671735403,0.20791822,837.22,836.29,1.19086231]
[1766671735602,0.20791822,837.22,836.31,1.19086231]
[1766671737109,0.20791822,837.22,836.3,1.19086231]
[1766671740712,0.20791822,837.22,836.32,1.19086231]
[1766671741812,0.20791822,837.22,836.32,10.22274208]
[1766671743213,0.20791822,837.22,836.32,9.03187977]
[1766671745518,0.20791822,837.22,836.32,1.19086231]
[1766671749120,0.20791822,837.22,836.33,1.19086231]
[1766671753220,0.20791822,837.22,836.34,1.19086231]
[1766671756226,0.20791822,837.22,836.35,1.19086231]
[1766671756825,0.20791822,837.22,836.35,10.2774514]
[1766671757225,0.89305718,837.41,836.35,10.2774514]
[1766671757423,1.19533646,837.4,836.45,1.19086231]
[1766671757622,0.20787475,837.32,836.45,1.19086231]
[1766671758228,0.20787475,837.32,836.46,1.19086231]
[1766671758429,0.20787475,837.32,836.45,1.19086231]
[1766671759226,0.20787475,837.32,836.46,1.19086231]
[1766671760425,0.20787475,837.32,836.45,1.19086231]
[1766671761130,0.20787475,837.32,836.46,1.19086231]
[1766671762227,0.20787475,837.32,836.47,1.19086231]
[1766671764134,0.20787475,837.32,836.48,1.19086231]
[1766671764335,0.20787475,837.32,836.47,1.19086231]
[1766671765337,0.20787475,837.32,836.48,1.19086231]
[1766671768433,0.20787475,837.32,836.47,1.19086231]
[1766671774140,0.20787475,837.32,836.48,1.19086231]
[1766671774342,0.20787475,837.32,836.48,10.12950394]
[1766671777646,0.20787475,837.32,836.48,1.19086231]
[1766671780144,0.20787475,837.32,836.49,1.19086231]
[1766671784253,1.19524735,837.31,836.49,1.19086231]
[1766671784454,0.20787475,837.32,836.49,1.19086231]
[1766671784750,1.19524735,837.31,836.49,1.19086231]
[1766671785054,0.20787475,837.32,836.49,1.19086231]
[1766671785350,1.19524724,837.31,836.49,1.19086231]
[1766671785555,0.20787475,837.32,836.49,1.19086231]
[1766671785752,1.19524724,837.31,836.49,1.19086231]
[1766671785955,0.20787475,837.32,836.49,1.19086231]
[1766671786156,1.19524724,837.31,836.49,1.19086231]
[1766671786356,0.20787475,837.32,836.49,1.19086231]
[1766671786556,1.19524724,837.31,836.49,1.19086231]
[1766671786856,0.20787475,837.32,836.49,1.19086231]
[1766671787054,1.19524713,837.31,836.49,1.19086231]
[1766671787252,0.20787475,837.32,836.49,1.19086231]
[1766671787456,1.19524713,837.31,836.49,1.19086231]
[1766671787756,0.20787475,837.32,836.49,1.19086231]
[1766671787956,1.19524713,837.31,836.49,1.19086231]
[1766671788154,0.20787475,837.32,836.49,1.19086231]
[1766671788353,1.19524713,837.31,836.49,1.19086231]
[1766671788556,0.20787475,837.32,836.49,1.19086231]
[1766671788758,1.19524713,837.31,836.49,1.19086231]
[1766671789057,0.20787475,837.32,836.49,1.19086231]
[1766671789254,1.19524713,837.31,836.5,1.19086231]
[1766671789454,0.20787475,837.32,836.5,1.19086231]
[1766671789653,1.19524713,837.31,836.5,1.19086231]
[1766671789854,0.20787475,837.32,836.5,1.19086231]
[1766671790158,1.19524713,837.31,836.5,10.32091739]
[1766671790459,0.20787475,837.32,836.5,10.32091739]
[1766671790760,1.19524713,837.31,836.5,10.32091739]
[1766671790955,0.20787475,837.32,836.5,10.32091739]
[1766671791159,1.19524713,837.31,836.5,10.32091739]
[1766671791359,0.20787475,837.32,836.5,10.32091739]
[1766671791655,1.19524713,837.31,836.5,10.32091739]
[1766671791856,0.20787475,837.32,836.5,10.32091739]
[1766671792158,1.19524713,837.31,836.5,10.32091739]
[1766671792356,0.20787475,837.32,836.5,10.32091739]
[1766671792560,1.19524713,837.31,836.5,10.32091739]
[1766671792761,0.20787475,837.32,836.5,10.32091739]
[1766671792962,1.19524713,837.31,836.5,10.32091739]
[1766671793160,1.19524713,837.3,836.5,10.32091739]
[1766671793360,0.20787475,837.32,836.5,10.32091739]
[1766671793560,1.19524713,837.31,836.5,1.19086231]
[1766671793766,1.19524713,837.3,836.5,1.19086231]
[1766671793963,0.20787475,837.32,836.5,1.19086231]
[1766671794263,1.19524713,837.31,836.5,1.19086231]
[1766671794566,1.19524713,837.3,836.5,1.19086231]
[1766671794766,0.20787475,837.32,836.5,1.19086231]
[1766671794966,1.19524713,837.31,836.5,1.19086231]
[1766671795167,1.19524713,837.3,836.51,1.19086231]
[1766671795467,0.20787475,837.32,836.51,1.19086231]
[1766671795667,1.19524713,837.31,836.51,1.19086231]
[1766671795964,1.19524713,837.3,836.51,1.19086231]
[1766671796162,0.20787475,837.32,836.51,1.19086231]
[1766671796367,1.19524713,837.31,836.51,1.19086231]
[1766671796569,1.19524713,837.3,836.51,1.19086231]
[1766671796762,0.20787475,837.32,836.51,1.19086231]
[1766671797067,1.19524713,837.31,836.51,1.19086231]